[Event "XII Cracow ICC-B 2024"]
[Site "Krakow"]
[Date "2024.06.26"]
[Round "6.7"]
[White "Rainer, Piotr"]
[Black "Zieba, Hubert"]
[Result "0-1"]
[ECO "B29"]
[WhiteElo "1910"]
[BlackElo "2012"]
[Annotator "NA RC"]
[PlyCount "112"]
[EventDate "2024.06.20"]
[EventType "swiss"]
[EventCountry "POL"]
[SourceTitle "playchess.com"]
[Source "ChessBase"]
[SourceQuality "1"]
[TimeControl "40/5400+30:1800+30"]

1. e4 {[%emt 0:00:05]} c5 {[%emt 0:00:03]} 2. Nf3 {[%emt 0:00:05]} Nf6 {[%emt 0:00:06]} 3. Nc3 {[%emt 0:01:43]} d5 {[%emt 0:00:03]} 4. exd5 {[%emt 0:06:40]} Nxd5 {[%emt 0:00:05]} 5. Bc4 {[%emt 0:02:04]} Nxc3 {[%emt 0:00:26]} 6. bxc3 {[%emt 0:00:28]} e6 {[%emt 0:00:13]} 7. O-O {[%emt 0:02:20]} Bd6 {[%emt 0:00:25]} 8. d4 {[%emt 0:08:55]} Nd7 {[%emt 0:10:06]} 9. Be3 {[%emt 0:02:56]} O-O {[%emt 0:02:54]} 10. a4 {[%emt 0:03:33]} Qc7 {[%emt 0:01:17]} 11. Bd3 {[%emt 0:01:30]} c4 {[%emt 0:03:22]} 12. Be2 {[%emt 0:01:19]} Nf6 {[%emt 0:00:11]} 13. Nd2 {[%emt 0:05:42]} Nd5 {[%emt 0:02:06]} 14. Bxc4 {[%emt 0:02:48]} Bxh2+ {[%emt 0:04:26]} 15. Kh1 {[%emt 0:00:05]} Nxc3 {[%emt 0:01:52]} 16. Qf3 {[%emt 0:05:10]} Bd6 {[%emt 0:00:15]} 17. Bg5 {[%emt 0:02:26]} Nd5 {[%emt 0:01:54]} 18. Bxd5 {[%emt 0:02:33]} exd5 {[%emt 0:00:05]} 19. Qxd5 {[%emt 0:00:33]} Be6 {[%emt 0:00:14]} 20. Qe4 {[%emt 0:01:15]} Qa5 {[%emt 0:00:25]} 21. Bf4 {[%emt 0:08:41]} Qh5+ {[%emt 0:03:51]} 22. Kg1 {[%emt 0:00:14]} Bd5 {[%emt 0:01:52]} 23. Qe3 {[%emt 0:01:05]} Qg4 {[%emt 0:01:21]} 24. Bg3 {[%emt 0:00:25]} Rfe8 {[%emt 0:01:31]} 25. Qd3 {[%emt 0:01:44]} Bxg3 {[%emt 0:00:46]} 26. fxg3 {[%emt 0:01:09]} Re2 {[%emt 0:02:12]} 27. Rf2 {[%emt 0:07:46]} Rae8 {[%emt 0:02:13]} 28. Nf3 {[%emt 0:01:24]} R2e3 {[%emt 0:01:00]} 29. Qf1 {[%emt 0:06:20]} Bxf3 {[%emt 0:01:38]} 30. Rxf3 {[%emt 0:00:52]} Rxf3 {[%emt 0:00:35]} 31. gxf3 {[%emt 0:00:53]} Qxg3+ {[%emt 0:00:18]} 32. Qg2 {[%emt 0:00:12]} Qxg2+ {[%emt 0:00:42]} 33. Kxg2 {[%emt 0:00:05]} Re2+ {[%emt 0:00:02]} 34. Kg3 {[%emt 0:00:08]} Rxc2 {[%emt 0:00:04]} 35. Rb1 {[%emt 0:00:13]} Rc7 {[%emt 0:00:04]} 36. Kf4 {[%emt 0:00:11]} Kf8 {[%emt 0:00:22]} 37. Ke5 {[%emt 0:00:06]} Ke7 {[%emt 0:00:26]} 38. a5 {[%emt 0:00:29]} f6+ {[%emt 0:00:20]} 39. Kd5 {[%emt 0:00:21]} Rd7+ {[%emt 0:01:15]} 40. Kc5 {[%emt 0:00:11]} Kd8 {[%emt 0:00:37]} 41. d5 {[%emt 0:33:38]} Kc7 {[%emt 0:30:38]} 42. Rd1 {[%emt 0:00:13]} b6+ {[%emt 0:00:08]} 43. axb6+ {[%emt 0:00:07]} axb6+ {[%emt 0:00:03]} 44. Kb5 {[%emt 0:00:04]} Kd6 {[%emt 0:02:09]} 45. Kxb6 {[%emt 0:00:44]} Rc7 {[%emt 0:00:52]} 46. f4 {[%emt 0:01:30]} Rc5 {[%emt 0:01:38]} 47. Rh1 {[%emt 0:00:26]} h6 {[%emt 0:00:38]} 48. Rg1 {[%emt 0:00:10]} g5 {[%emt 0:01:35]} 49. fxg5 {[%emt 0:01:27]} hxg5 {[%emt 0:00:04]} 50. Rf1 {[%emt 0:00:04]} Rxd5 {[%emt 0:00:04]} 51. Rxf6+ {[%emt 0:00:10]} Ke5 {[%emt 0:00:04]} 52. Rf8 {[%emt 0:01:07]} g4 {[%emt 0:00:09]} 53. Kc6 {[%emt 0:00:05]} Rd2 {[%emt 0:00:12]} 54. Kc5 {[%emt 0:00:15]} Rc2+ {[%emt 0:00:04]} 55. Kb4 {[%emt 0:00:09]} g3 {[%emt 0:00:11]} 56. Kb3 {[%emt 0:00:06]} Rc6 {[%emt 0:00:18]} 0-1